[Event "Late-Titled-Tuesday-Blitz-April-02-2024"]
[Site "Chess.com"]
[Date "2024.04.02"]
[Round "9"]
[White "Darkdefense15"]
[Black "Jahonas"]
[Result "0-1"]
[WhiteElo "2378"]
[BlackElo "2499"]
[TimeControl "180+1"]
[EndTime "15:42:31 PDT"]
[Termination "Jahonas won by resignation"]

1. d4 {[%clk 0:03:00.9]} 1... Nf6 {[%clk 0:02:59]} 2. Bf4 {[%clk 0:03:00.7]}
2... d6 {[%clk 0:02:58.7]} 3. Nc3 {[%clk 0:03:00.6]} 3... Nbd7 {[%clk
0:02:58.6]} 4. Nf3 {[%clk 0:02:58.4]} 4... c6 {[%clk 0:02:58.7]} 5. e4 {[%clk
0:02:58]} 5... Qc7 {[%clk 0:02:39.1]} 6. a4 {[%clk 0:02:50.7]} 6... e5 {[%clk
0:02:38.7]} 7. dxe5 {[%clk 0:02:49]} 7... dxe5 {[%clk 0:02:37.6]} 8. Be3 {[%clk
0:02:47.1]} 8... Bb4 {[%clk 0:02:36.4]} 9. Bd3 {[%clk 0:02:46.4]} 9... O-O
{[%clk 0:02:33.5]} 10. h3 {[%clk 0:02:46.4]} 10... Rd8 {[%clk 0:02:32.7]} 11.
O-O {[%clk 0:02:46.4]} 11... Nc5 {[%clk 0:02:29.8]} 12. Qe2 {[%clk 0:02:09.6]}
12... Nxd3 {[%clk 0:02:27.8]} 13. cxd3 {[%clk 0:02:09.4]} 13... Be6 {[%clk
0:02:22.5]} 14. Qc2 {[%clk 0:02:06]} 14... Rac8 {[%clk 0:02:07.4]} 15. d4 {[%clk
0:02:06.1]} 15... exd4 {[%clk 0:02:03.4]} 16. Nxd4 {[%clk 0:02:07]} 16... Bxc3
{[%clk 0:01:59.3]} 17. Nxe6 {[%clk 0:01:44.3]} 17... fxe6 {[%clk 0:01:56.7]} 18.
Qxc3 {[%clk 0:01:37.3]} 18... Nxe4 {[%clk 0:01:49.9]} 19. Qc4 {[%clk 0:01:37.7]}
19... Qe5 {[%clk 0:01:14]} 20. Rfe1 {[%clk 0:01:37.5]} 20... Qd5 {[%clk
0:01:10.3]} 21. Qb4 {[%clk 0:01:29.2]} 21... b6 {[%clk 0:01:07.4]} 22. Bxb6
{[%clk 0:01:24.7]} 22... axb6 {[%clk 0:00:56.3]} 23. Rxe4 {[%clk 0:01:21.8]}
23... c5 {[%clk 0:00:51.8]} 24. Qe1 {[%clk 0:01:19]} 24... Rc6 {[%clk
0:00:50.5]} 25. a5 {[%clk 0:01:13.7]} 25... b5 {[%clk 0:00:46.9]} 26. a6 {[%clk
0:01:11.6]} 26... Ra8 {[%clk 0:00:46.6]} 27. a7 {[%clk 0:01:10]} 27... Qd7
{[%clk 0:00:44.1]} 28. Rd1 {[%clk 0:00:58.7]} 28... Qe7 {[%clk 0:00:38.8]} 29.
Qa5 {[%clk 0:00:57.5]} 29... b4 {[%clk 0:00:30.9]} 30. Qb5 {[%clk 0:00:49.2]}
30... Qc7 {[%clk 0:00:16.1]} 31. Qc4 {[%clk 0:00:41]} 31... Rxa7 {[%clk
0:00:15]} 32. Rxe6 {[%clk 0:00:41.2]} 32... Kf8 {[%clk 0:00:07.3]} 33. Qf4+
{[%clk 0:00:38.9]} 33... Qxf4 {[%clk 0:00:05.9]} 34. Rxc6 {[%clk 0:00:38.6]}
34... Re7 {[%clk 0:00:05.6]} 35. Rxc5 {[%clk 0:00:33.3]} 35... Kf7 {[%clk
0:00:05.3]} 36. Rdd5 {[%clk 0:00:31.6]} 36... g6 {[%clk 0:00:04.7]} 37. Rd1
{[%clk 0:00:26.8]} 37... Re2 {[%clk 0:00:04.5]} 38. Rf1 {[%clk 0:00:26.4]} 38...
Rxb2 {[%clk 0:00:03.5]} 39. Rb5 {[%clk 0:00:25.3]} 39... Rc2 {[%clk 0:00:03.5]}
0-1

[Event "Late-Titled-Tuesday-Blitz-April-02-2024"]
[Site "Chess.com"]
[Date "2024.04.02"]
[Round "9"]
[White "rcmz"]
[Black "Cluke86"]
[Result "1-0"]
[WhiteElo "2216"]
[BlackElo "2315"]
[TimeControl "180+1"]
[EndTime "15:42:32 PDT"]
[Termination "rcmz won on time"]

1. b4 {[%clk 0:03:00.9]} 1... c6 {[%clk 0:02:53.5]} 2. Bb2 {[%clk 0:02:59.5]}
2... a5 {[%clk 0:02:47.1]} 3. a3 {[%clk 0:02:57.9]} 3... Qb6 {[%clk 0:02:44]} 4.
e3 {[%clk 0:02:54]} 4... axb4 {[%clk 0:02:36.7]} 5. Bd4 {[%clk 0:02:52.1]} 5...
c5 {[%clk 0:02:34.4]} 6. Bxc5 {[%clk 0:02:50.8]} 6... Qc7 {[%clk 0:02:18.3]} 7.
Bxb4 {[%clk 0:02:48.4]} 7... Nc6 {[%clk 0:02:17.7]} 8. Bc3 {[%clk 0:02:47]} 8...
Nf6 {[%clk 0:02:12.3]} 9. f4 {[%clk 0:02:45.1]} 9... d5 {[%clk 0:02:10.1]} 10.
Nf3 {[%clk 0:02:44.5]} 10... Bg4 {[%clk 0:02:07.7]} 11. Bb5 {[%clk 0:02:44.1]}
11... e6 {[%clk 0:02:01.9]} 12. O-O {[%clk 0:02:41.5]} 12... Bc5 {[%clk
0:02:00.6]} 13. h3 {[%clk 0:02:28]} 13... Bxf3 {[%clk 0:01:59.5]} 14. Rxf3
{[%clk 0:02:17.3]} 14... O-O {[%clk 0:01:58.5]} 15. Bxc6 {[%clk 0:02:14.1]}
15... bxc6 {[%clk 0:01:56.2]} 16. Bxf6 {[%clk 0:02:10.3]} 16... gxf6 {[%clk
0:01:57.1]} 17. Rg3+ {[%clk 0:02:08.7]} 17... Kh8 {[%clk 0:01:57.5]} 18. Kh2
{[%clk 0:01:57.5]} 18... Rg8 {[%clk 0:01:40.3]} 19. Rxg8+ {[%clk 0:01:55.2]}
19... Rxg8 {[%clk 0:01:40.3]} 20. d4 {[%clk 0:01:53.1]} 20... Bd6 {[%clk
0:01:37.8]} 21. Qd2 {[%clk 0:01:37.4]} 21... e5 {[%clk 0:01:35.5]} 22. fxe5
{[%clk 0:01:26.7]} 22... fxe5 {[%clk 0:01:36.4]} 23. Kh1 {[%clk 0:01:25.5]}
23... exd4 {[%clk 0:01:33.6]} 24. exd4 {[%clk 0:01:24.7]} 24... Bf4 {[%clk
0:01:21.6]} 25. Qe2 {[%clk 0:01:21.4]} 25... Qd7 {[%clk 0:01:12.7]} 26. Nd2
{[%clk 0:01:13.4]} 26... Re8 {[%clk 0:01:09.9]} 27. Qd3 {[%clk 0:01:07.6]} 27...
Re3 {[%clk 0:01:07.7]} 28. Qf1 {[%clk 0:00:54.7]} 28... Qf5 {[%clk 0:00:56.8]}
29. Nf3 {[%clk 0:00:53.4]} 29... Qg6 {[%clk 0:00:42.7]} 30. Qf2 {[%clk 0:00:47]}
30... Re4 {[%clk 0:00:39.4]} 31. a4 {[%clk 0:00:39.8]} 31... Be3 {[%clk
0:00:38.1]} 32. Qf1 {[%clk 0:00:38.5]} 32... Qg3 {[%clk 0:00:33.8]} 33. a5
{[%clk 0:00:36]} 33... Bf4 {[%clk 0:00:26.8]} 34. Re1 {[%clk 0:00:33.5]} 34...
Rxd4 {[%clk 0:00:22.5]} 35. a6 {[%clk 0:00:29.3]} 35... Ra4 {[%clk 0:00:22]} 36.
Ra1 {[%clk 0:00:25.5]} 36... Rxa1 {[%clk 0:00:14.3]} 37. Qxa1+ {[%clk 0:00:25]}
37... Kg8 {[%clk 0:00:06]} 38. a7 {[%clk 0:00:24.6]} 1-0

[Event "Late-Titled-Tuesday-Blitz-April-02-2024"]
[Site "Chess.com"]
[Date "2024.04.02"]
[Round "9"]
[White "Smiechu"]
[Black "xasid81"]
[Result "0-1"]
[WhiteElo "2506"]
[BlackElo "2656"]
[TimeControl "180+1"]
[EndTime "15:42:33 PDT"]
[Termination "xasid81 won on time"]

1. e4 {[%clk 0:03:00.9]} 1... e6 {[%clk 0:02:57.1]} 2. d4 {[%clk 0:03:00.4]}
2... d5 {[%clk 0:02:58]} 3. Bd3 {[%clk 0:03:00.5]} 3... c5 {[%clk 0:02:56.9]} 4.
exd5 {[%clk 0:02:58.6]} 4... Qxd5 {[%clk 0:02:54.9]} 5. Nf3 {[%clk 0:02:53.5]}
5... cxd4 {[%clk 0:02:54.9]} 6. O-O {[%clk 0:02:48.2]} 6... Nc6 {[%clk
0:02:54.4]} 7. c3 {[%clk 0:02:37.2]} 7... dxc3 {[%clk 0:02:48.8]} 8. Nxc3 {[%clk
0:02:36.8]} 8... Qd8 {[%clk 0:02:42.7]} 9. a3 {[%clk 0:02:32.2]} 9... Nf6 {[%clk
0:02:42.4]} 10. Qc2 {[%clk 0:02:30.8]} 10... Be7 {[%clk 0:02:38.9]} 11. Bf4
{[%clk 0:02:26.8]} 11... O-O {[%clk 0:02:34.8]} 12. Rad1 {[%clk 0:02:25.8]}
12... Qa5 {[%clk 0:02:31]} 13. Ne4 {[%clk 0:02:19.4]} 13... Qh5 {[%clk
0:02:10.5]} 14. Ng3 {[%clk 0:02:15.5]} 14... Qg4 {[%clk 0:02:08]} 15. Bg5 {[%clk
0:02:03.8]} 15... Nd4 {[%clk 0:02:00.1]} 16. Nxd4 {[%clk 0:01:54.8]} 16... Qxg5
{[%clk 0:02:00.1]} 17. Ne4 {[%clk 0:01:46.7]} 17... Qh6 {[%clk 0:01:49.6]} 18.
Nb5 {[%clk 0:01:22.4]} 18... Nd5 {[%clk 0:01:33.8]} 19. Nc7 {[%clk 0:01:11.7]}
19... Nxc7 {[%clk 0:01:33.9]} 20. Qxc7 {[%clk 0:01:11.3]} 20... Bf6 {[%clk
0:01:31.3]} 21. Bb1 {[%clk 0:00:58.2]} 21... Bxb2 {[%clk 0:01:20.3]} 22. Rd3
{[%clk 0:00:58]} 22... e5 {[%clk 0:01:15.9]} 23. Rg3 {[%clk 0:00:52.1]} 23...
Bf5 {[%clk 0:00:58.2]} 24. Qxb7 {[%clk 0:00:43.5]} 24... Rab8 {[%clk 0:00:46.1]}
25. Qd5 {[%clk 0:00:30.4]} 25... Bd4 {[%clk 0:00:44.6]} 26. Ba2 {[%clk
0:00:18.2]} 26... Be6 {[%clk 0:00:33.2]} 27. Qd6 {[%clk 0:00:18.3]} 27... Rb6
{[%clk 0:00:31.3]} 28. Qe7 {[%clk 0:00:12]} 28... Bxa2 {[%clk 0:00:27.4]} 29. h3
{[%clk 0:00:10.2]} 29... Rg6 {[%clk 0:00:25.1]} 30. Rd1 {[%clk 0:00:07.1]} 30...
Bd5 {[%clk 0:00:21.8]} 31. Rxg6 {[%clk 0:00:03.1]} 31... Qxg6 {[%clk 0:00:21.4]}
32. Ng5 {[%clk 0:00:03.6]} 32... h6 {[%clk 0:00:20.4]} 33. Qd7 {[%clk
0:00:03.2]} 33... Qxg5 {[%clk 0:00:18.8]} 34. Qxd5 {[%clk 0:00:03.3]} 34... Qf6
{[%clk 0:00:19.1]} 0-1

[Event "Late-Titled-Tuesday-Blitz-April-02-2024"]
[Site "Chess.com"]
[Date "2024.04.02"]
[Round "9"]
[White "Bala-Afiada"]
[Black "elcala"]
[Result "0-1"]
[WhiteElo "1947"]
[BlackElo "1818"]
[TimeControl "180+1"]
[EndTime "15:42:36 PDT"]
[Termination "elcala won by resignation"]

1. d4 {[%clk 0:02:57.2]} 1... Nf6 {[%clk 0:02:59.4]} 2. c4 {[%clk 0:02:55.8]}
2... c5 {[%clk 0:02:59]} 3. d5 {[%clk 0:02:55.7]} 3... d6 {[%clk 0:02:59.1]} 4.
Nc3 {[%clk 0:02:55.2]} 4... g6 {[%clk 0:02:57.4]} 5. e4 {[%clk 0:02:55.1]} 5...
Bg7 {[%clk 0:02:56.6]} 6. Nf3 {[%clk 0:02:55.5]} 6... Bg4 {[%clk 0:02:55.3]} 7.
Be2 {[%clk 0:02:55.5]} 7... O-O {[%clk 0:02:52.6]} 8. Be3 {[%clk 0:02:53.8]}
8... Nbd7 {[%clk 0:02:51.6]} 9. Qd2 {[%clk 0:02:51.6]} 9... Bxf3 {[%clk
0:02:50.9]} 10. Bxf3 {[%clk 0:02:51.6]} 10... Ne5 {[%clk 0:02:51.6]} 11. Be2
{[%clk 0:02:52.1]} 11... Qa5 {[%clk 0:02:43.6]} 12. O-O {[%clk 0:02:48.5]} 12...
Nfg4 {[%clk 0:02:29.4]} 13. Bg5 {[%clk 0:02:29.1]} 13... Qb4 {[%clk 0:02:17.1]}
14. Bxe7 {[%clk 0:02:22.9]} 14... Rfe8 {[%clk 0:02:13.7]} 15. Bxd6 {[%clk
0:02:21.8]} 15... Nxc4 {[%clk 0:02:13.7]} 16. Bxc4 {[%clk 0:02:14.2]} 16... Qxc4
{[%clk 0:02:13.6]} 17. Rac1 {[%clk 0:01:30.2]} 17... Bxc3 {[%clk 0:02:08.1]} 18.
Rxc3 {[%clk 0:01:24.8]} 18... Qxe4 {[%clk 0:02:08.2]} 19. f3 {[%clk 0:01:04.4]}
19... Qd4+ {[%clk 0:01:56.7]} 20. Qxd4 {[%clk 0:01:01.9]} 20... cxd4 {[%clk
0:01:57.6]} 21. Rd3 {[%clk 0:00:49.9]} 21... Ne3 {[%clk 0:01:57.4]} 22. Re1
{[%clk 0:00:44.5]} 22... Rad8 {[%clk 0:01:51.8]} 23. Bf4 {[%clk 0:00:37.9]}
23... Nxd5 {[%clk 0:01:36.8]} 24. Rxe8+ {[%clk 0:00:36.9]} 24... Rxe8 {[%clk
0:01:35.5]} 25. Bh6 {[%clk 0:00:36.1]} 25... Ne3 {[%clk 0:01:15.9]} 26. Rxd4
{[%clk 0:00:32.8]} 26... Nf5 {[%clk 0:01:15.9]} 27. Rd7 {[%clk 0:00:26.8]} 27...
Nxh6 {[%clk 0:01:12.9]} 28. Rxb7 {[%clk 0:00:26.7]} 28... Ra8 {[%clk 0:01:06.1]}
29. g4 {[%clk 0:00:24.6]} 29... Kg7 {[%clk 0:01:01.5]} 30. b4 {[%clk 0:00:23.3]}
30... Ng8 {[%clk 0:01:00.6]} 31. a4 {[%clk 0:00:22.8]} 31... Nf6 {[%clk
0:00:59.4]} 32. b5 {[%clk 0:00:22.6]} 32... Nd5 {[%clk 0:00:56.3]} 33. a5 {[%clk
0:00:20.4]} 33... Nc3 {[%clk 0:00:54.6]} 34. Kf2 {[%clk 0:00:19.3]} 34... Na4
{[%clk 0:00:50]} 35. Ke3 {[%clk 0:00:18.1]} 35... Nc5 {[%clk 0:00:49.2]} 36. Rc7
{[%clk 0:00:17.2]} 36... Ne6 {[%clk 0:00:47.1]} 37. Rb7 {[%clk 0:00:16.4]} 37...
Nc5 {[%clk 0:00:43.5]} 38. Rc7 {[%clk 0:00:15.7]} 38... Nb3 {[%clk 0:00:41.6]}
39. b6 {[%clk 0:00:10.8]} 39... axb6 {[%clk 0:00:40.3]} 40. axb6 {[%clk
0:00:11]} 40... Rb8 {[%clk 0:00:38.5]} 41. Rc6 {[%clk 0:00:06.5]} 41... Na5
{[%clk 0:00:35.7]} 42. Rd6 {[%clk 0:00:05.9]} 42... Nc4+ {[%clk 0:00:35]} 43.
Kd4 {[%clk 0:00:06.5]} 43... Nxd6 {[%clk 0:00:34.7]} 0-1

[Event "Late-Titled-Tuesday-Blitz-April-02-2024"]
[Site "Chess.com"]
[Date "2024.04.02"]
[Round "9"]
[White "LeninGuerra"]
[Black "MaestroCheck"]
[Result "1-0"]
[WhiteElo "2719"]
[BlackElo "2580"]
[TimeControl "180+1"]
[EndTime "15:42:41 PDT"]
[Termination "LeninGuerra won by resignation"]

1. e4 {[%clk 0:03:00.9]} 1... c5 {[%clk 0:02:59.2]} 2. Nf3 {[%clk 0:03:00.6]}
2... e6 {[%clk 0:02:57.6]} 3. b4 {[%clk 0:03:00.7]} 3... cxb4 {[%clk 0:02:50.2]}
4. a3 {[%clk 0:03:01.1]} 4... d5 {[%clk 0:02:46]} 5. e5 {[%clk 0:03:00.5]} 5...
Nc6 {[%clk 0:02:26]} 6. Bd3 {[%clk 0:03:00.1]} 6... Nge7 {[%clk 0:02:22.3]} 7.
O-O {[%clk 0:02:59.1]} 7... Ng6 {[%clk 0:02:22.5]} 8. Re1 {[%clk 0:02:58.7]}
8... Be7 {[%clk 0:02:18.9]} 9. Bf1 {[%clk 0:02:35.6]} 9... d4 {[%clk 0:01:45.4]}
10. axb4 {[%clk 0:02:30.3]} 10... Bxb4 {[%clk 0:01:42.9]} 11. Na3 {[%clk
0:02:28.6]} 11... O-O {[%clk 0:01:41.8]} 12. Nb5 {[%clk 0:02:23.9]} 12... a6
{[%clk 0:01:25.6]} 13. Bb2 {[%clk 0:02:23.5]} 13... Bc5 {[%clk 0:01:26.1]} 14.
Re4 {[%clk 0:02:20.6]} 14... Bd7 {[%clk 0:01:17.8]} 15. Nbxd4 {[%clk 0:02:19]}
15... Qb6 {[%clk 0:01:13.5]} 16. Bc3 {[%clk 0:02:01]} 16... Nxd4 {[%clk
0:01:10.7]} 17. Nxd4 {[%clk 0:01:59]} 17... Qc7 {[%clk 0:00:57.8]} 18. Nf3
{[%clk 0:01:49.7]} 18... Bc6 {[%clk 0:00:56.3]} 19. Rg4 {[%clk 0:01:49.3]} 19...
Rfd8 {[%clk 0:00:37]} 20. Bd3 {[%clk 0:01:48.7]} 20... Bb5 {[%clk 0:00:30]} 21.
Be4 {[%clk 0:01:38.9]} 21... Bc6 {[%clk 0:00:29.9]} 22. Qe2 {[%clk 0:01:32.1]}
22... Bxe4 {[%clk 0:00:28.5]} 23. Qxe4 {[%clk 0:01:33]} 23... a5 {[%clk
0:00:28.1]} 24. h4 {[%clk 0:01:31.9]} 24... h6 {[%clk 0:00:25.8]} 25. h5 {[%clk
0:01:30.5]} 25... Ne7 {[%clk 0:00:26.3]} 26. Nh4 {[%clk 0:00:37.7]} 26... b5
{[%clk 0:00:19.9]} 27. Qf4 {[%clk 0:00:36.8]} 27... Kf8 {[%clk 0:00:15.6]} 28.
Qg3 {[%clk 0:00:34.9]} 28... b4 {[%clk 0:00:13.3]} 29. d4 {[%clk 0:00:22.8]}
29... bxc3 {[%clk 0:00:11.3]} 30. dxc5 {[%clk 0:00:23]} 30... Qxc5 {[%clk
0:00:11.8]} 31. Rxg7 {[%clk 0:00:23.1]} 31... Rd4 {[%clk 0:00:09.2]} 32. Rh7
{[%clk 0:00:22.2]} 32... Ke8 {[%clk 0:00:08.2]} 33. Rh8+ {[%clk 0:00:21.7]}
33... Kd7 {[%clk 0:00:08.7]} 34. Rxa8 {[%clk 0:00:22.1]} 34... Qd5 {[%clk
0:00:06.9]} 35. R8xa5 {[%clk 0:00:20.7]} 35... Rd1+ {[%clk 0:00:06.2]} 36. Rxd1
{[%clk 0:00:21.2]} 36... Qxd1+ {[%clk 0:00:06.5]} 37. Kh2 {[%clk 0:00:21.8]}
37... Qxc2 {[%clk 0:00:07.4]} 38. Ra7+ {[%clk 0:00:20.6]} 38... Ke8 {[%clk
0:00:07.5]} 39. Qg7 {[%clk 0:00:19]} 39... Qh7 {[%clk 0:00:02.3]} 40. Qxh7
{[%clk 0:00:19]} 1-0

[Event "Late-Titled-Tuesday-Blitz-April-02-2024"]
[Site "Chess.com"]
[Date "2024.04.02"]
[Round "9"]
[White "rdarruda"]
[Black "Doublekk14"]
[Result "1-0"]
[WhiteElo "2486"]
[BlackElo "2362"]
[TimeControl "180+1"]
[EndTime "15:42:42 PDT"]
[Termination "rdarruda won on time"]

1. d4 {[%clk 0:02:53.1]} 1... Nf6 {[%clk 0:02:58.8]} 2. Nf3 {[%clk 0:02:53.2]}
2... d5 {[%clk 0:02:47.2]} 3. e3 {[%clk 0:02:52.4]} 3... e6 {[%clk 0:02:47]} 4.
c4 {[%clk 0:02:52.7]} 4... c5 {[%clk 0:02:44.8]} 5. Nc3 {[%clk 0:02:52]} 5...
Nc6 {[%clk 0:02:44.6]} 6. cxd5 {[%clk 0:02:51.3]} 6... exd5 {[%clk 0:02:44.1]}
7. Be2 {[%clk 0:02:51.3]} 7... h6 {[%clk 0:02:40.5]} 8. O-O {[%clk 0:02:51]}
8... Be6 {[%clk 0:02:39.6]} 9. b3 {[%clk 0:02:50.8]} 9... Be7 {[%clk 0:02:36.7]}
10. dxc5 {[%clk 0:02:50]} 10... Bxc5 {[%clk 0:02:36.4]} 11. Bb2 {[%clk
0:02:50.7]} 11... O-O {[%clk 0:02:34.2]} 12. Rc1 {[%clk 0:02:50.7]} 12... Qe7
{[%clk 0:02:26.5]} 13. Na4 {[%clk 0:02:48.6]} 13... Bd6 {[%clk 0:02:23]} 14. Nd4
{[%clk 0:02:46.3]} 14... Rac8 {[%clk 0:02:19.5]} 15. Nxc6 {[%clk 0:02:45.4]}
15... bxc6 {[%clk 0:02:18.2]} 16. h3 {[%clk 0:02:35.5]} 16... Bd7 {[%clk
0:01:48.2]} 17. Qd4 {[%clk 0:02:29]} 17... c5 {[%clk 0:01:32.3]} 18. Qh4 {[%clk
0:02:27.7]} 18... Ne4 {[%clk 0:01:25.8]} 19. Qxe7 {[%clk 0:02:26.3]} 19... Bxe7
{[%clk 0:01:25.8]} 20. Rfd1 {[%clk 0:02:18.1]} 20... Bxa4 {[%clk 0:01:13.5]} 21.
bxa4 {[%clk 0:02:17.4]} 21... Bf6 {[%clk 0:01:14.4]} 22. Bxf6 {[%clk 0:02:03.6]}
22... Nxf6 {[%clk 0:01:05.7]} 23. f3 {[%clk 0:01:57.3]} 23... Rfd8 {[%clk
0:00:58.6]} 24. Kf2 {[%clk 0:01:56.4]} 24... Rd7 {[%clk 0:00:27.8]} 25. Ba6
{[%clk 0:01:51.8]} 25... Rcc7 {[%clk 0:00:25.3]} 26. Bb5 {[%clk 0:01:50.5]}
26... Rd6 {[%clk 0:00:24.4]} 27. Rc3 {[%clk 0:01:49.6]} 27... a6 {[%clk
0:00:17.6]} 28. Be2 {[%clk 0:01:47.9]} 28... Rb6 {[%clk 0:00:13]} 29. Rd2 {[%clk
0:01:43.6]} 29... a5 {[%clk 0:00:10.9]} 30. Bb5 {[%clk 0:01:42.7]} 30... Kf8
{[%clk 0:00:09.9]} 31. Rdc2 {[%clk 0:01:40.9]} 31... c4 {[%clk 0:00:08.5]} 32.
Rd2 {[%clk 0:01:39.1]} 32... Ke7 {[%clk 0:00:08.5]} 33. Rd4 {[%clk 0:01:32.2]}
33... Rd6 {[%clk 0:00:07.6]} 34. g4 {[%clk 0:01:24]} 34... Nd7 {[%clk 0:00:07]}
35. e4 {[%clk 0:01:16.4]} 35... dxe4 {[%clk 0:00:03.6]} 36. Rxe4+ {[%clk
0:01:12.8]} 36... Kf6 {[%clk 0:00:03.7]} 37. Rexc4 {[%clk 0:01:11.6]} 37... Rxc4
{[%clk 0:00:03.8]} 38. Rxc4 {[%clk 0:01:11.7]} 38... Nb6 {[%clk 0:00:03.3]} 39.
Rc2 {[%clk 0:01:10.8]} 39... Ke7 {[%clk 0:00:03.1]} 40. Ke3 {[%clk 0:01:10.1]}
40... Kf6 {[%clk 0:00:03]} 41. Bc6 {[%clk 0:00:57]} 41... Nd5+ {[%clk
0:00:02.7]} 42. Bxd5 {[%clk 0:00:56.5]} 42... Rxd5 {[%clk 0:00:02.9]} 43. Rc6+
{[%clk 0:00:55.4]} 43... Ke5 {[%clk 0:00:02.7]} 44. Rb6 {[%clk 0:00:49.5]} 44...
Rc5 {[%clk 0:00:02]} 45. Rb5 {[%clk 0:00:49]} 45... Kd5 {[%clk 0:00:02.2]} 46.
Rb7 {[%clk 0:00:45.9]} 46... Kc4 {[%clk 0:00:01.3]} 47. Rxf7 {[%clk 0:00:43.4]}
47... g5 {[%clk 0:00:01.6]} 48. f4 {[%clk 0:00:42.6]} 48... gxf4+ {[%clk
0:00:01.6]} 49. Rxf4+ {[%clk 0:00:42.1]} 49... Kc3 {[%clk 0:00:01.6]} 50. Rf5
{[%clk 0:00:42.1]} 1-0

[Event "Late-Titled-Tuesday-Blitz-April-02-2024"]
[Site "Chess.com"]
[Date "2024.04.02"]
[Round "9"]
[White "ozates"]
[Black "Meri-Arabidze"]
[Result "1-0"]
[WhiteElo "2587"]
[BlackElo "2687"]
[TimeControl "180+1"]
[EndTime "15:42:45 PDT"]
[Termination "ozates won on time"]

1. e4 {[%clk 0:03:00.3]} 1... c5 {[%clk 0:03:00.2]} 2. Nf3 {[%clk 0:02:59.5]}
2... e6 {[%clk 0:03:00.8]} 3. d4 {[%clk 0:02:59.3]} 3... cxd4 {[%clk 0:03:01.7]}
4. Nxd4 {[%clk 0:02:59.9]} 4... Nc6 {[%clk 0:03:02]} 5. Nc3 {[%clk 0:02:59.5]}
5... Qc7 {[%clk 0:03:02.2]} 6. Qd3 {[%clk 0:02:57.2]} 6... Nf6 {[%clk
0:02:52.6]} 7. Ndb5 {[%clk 0:02:52.8]} 7... Qb8 {[%clk 0:02:48.4]} 8. Qg3 {[%clk
0:02:52.7]} 8... d6 {[%clk 0:02:39]} 9. Be3 {[%clk 0:02:52]} 9... e5 {[%clk
0:01:47.2]} 10. O-O-O {[%clk 0:02:44.2]} 10... Be6 {[%clk 0:01:47]} 11. Nxd6+
{[%clk 0:02:32.4]} 11... Bxd6 {[%clk 0:01:42.9]} 12. Qxg7 {[%clk 0:02:32.2]}
12... Rg8 {[%clk 0:01:22.4]} 13. Qxf6 {[%clk 0:02:30.7]} 13... a6 {[%clk
0:00:44.8]} 14. Nd5 {[%clk 0:02:04.5]} 14... Bxd5 {[%clk 0:00:43]} 15. Rxd5
{[%clk 0:02:03.1]} 15... Be7 {[%clk 0:00:39.2]} 16. Qh6 {[%clk 0:02:02.7]} 16...
Qc7 {[%clk 0:00:22.6]} 17. Qxh7 {[%clk 0:01:55.1]} 17... Rf8 {[%clk 0:00:22.8]}
18. a3 {[%clk 0:01:54.3]} 18... Rc8 {[%clk 0:00:16.7]} 19. Bd3 {[%clk
0:01:48.1]} 19... Nd4 {[%clk 0:00:17]} 20. Bxd4 {[%clk 0:01:45.3]} 20... exd4
{[%clk 0:00:17.4]} 21. Qf5 {[%clk 0:01:43.1]} 21... Rg8 {[%clk 0:00:09.7]} 22.
g3 {[%clk 0:01:23.3]} 22... Rg6 {[%clk 0:00:09.9]} 23. h4 {[%clk 0:01:20.3]}
23... Rf6 {[%clk 0:00:09.6]} 24. Qg5 {[%clk 0:01:10.9]} 24... Rxf2 {[%clk
0:00:08.8]} 25. Qg8+ {[%clk 0:01:11.1]} 25... Bf8 {[%clk 0:00:09.2]} 26. Kb1
{[%clk 0:01:09.1]} 26... Rxc2 {[%clk 0:00:07]} 27. Bxc2 {[%clk 0:01:05.1]} 27...
Qxc2+ {[%clk 0:00:07.9]} 28. Ka1 {[%clk 0:01:05.7]} 28... Qxe4 {[%clk
0:00:06.2]} 29. Qg5 {[%clk 0:00:27.5]} 29... Qxh1+ {[%clk 0:00:05.7]} 30. Ka2
{[%clk 0:00:28.3]} 30... Be7 {[%clk 0:00:04.4]} 31. Qg8+ {[%clk 0:00:21.2]}
31... Bf8 {[%clk 0:00:04.7]} 32. Qg5 {[%clk 0:00:22]} 32... Be7 {[%clk
0:00:04.6]} 33. Re5 {[%clk 0:00:22.6]} 33... Rc7 {[%clk 0:00:03.3]} 34. Qg8+
{[%clk 0:00:22.5]} 34... Kd7 {[%clk 0:00:03.7]} 35. Qxf7 {[%clk 0:00:23.1]}
35... Kd8 {[%clk 0:00:02.5]} 36. Qg8+ {[%clk 0:00:18.7]} 36... Kd7 {[%clk
0:00:02.9]} 37. Qe6+ {[%clk 0:00:19.1]} 37... Kd8 {[%clk 0:00:03]} 38. Rd5+
{[%clk 0:00:19.7]} 38... Ke8 {[%clk 0:00:02.5]} 39. Qg6+ {[%clk 0:00:16.5]}
39... Kf8 {[%clk 0:00:01.5]} 40. Rf5+ {[%clk 0:00:17.1]} 1-0